bitfinex/quotes_SOLUSD_20250619
["timestamp","ask_amount","ask_price","bid_price","bid_amount"]
[1750316443223,5.25809062,145.33,145.3,24.08809359]
[1750316443388,42.17313405,145.34,145.3,24.08809359]
[1750316443715,10.39313405,145.34,145.3,29.34618421]
[1750316443919,5.25809062,145.34,145.3,29.34618421]
[1750316445017,10.3916595,145.35,145.3,29.34618421]
[1750316445218,10.3916595,145.36,145.31,6.81659062]
[1750316445403,5.25809062,145.36,145.31,6.81659062]
[1750316445719,10.39225174,145.36,145.32,5.25809062]
[1750316446020,10.39225174,145.36,145.31,6.81659062]
[1750316446612,5.25809062,145.36,145.32,24.08477841]
[1750316450520,31.13043288,145.37,145.32,24.08477841]
[1750316450822,5.25809062,145.35,145.32,24.08477841]
[1750316451203,5.25809062,145.36,145.32,24.08477841]
[1750316451603,5.25809062,145.36,145.32,29.34286903]
[1750316454818,5.13043288,145.38,145.32,24.08477841]
[1750316455004,5.25809062,145.35,145.32,24.08477841]
[1750316456418,59.48,145.39,145.32,24.08477841]
[1750316456596,5.25809062,145.36,145.32,112.28477841]
[1750316457613,5.25809062,145.36,145.32,117.54286903]
[1750316459523,59.48,145.39,145.32,112.28477841]
[1750316459728,5.25809062,145.35,145.32,24.08477841]
[1750316460097,5.25809062,145.34,145.32,6.88136526]
[1750316460302,5.25809062,145.33,145.32,6.88136526]
[1750316461601,5.25809062,145.33,145.29,24.08872439]
[1750316461814,5.25809062,145.32,145.29,24.08872439]
[1750316466030,5.25809062,145.33,145.29,29.34681501]
[1750316466222,5.25809062,145.34,145.3,5.25809062]
[1750316467029,5.25809062,145.34,145.29,24.08872439]
[1750316467208,5.25809062,145.34,145.3,5.25809062]
[1750316467907,5.25809062,145.35,145.3,5.25809062]
[1750316468507,5.25809062,145.35,145.31,24.08643588]
[1750316470319,5.25809062,145.35,145.31,29.3445265]
[1750316471126,31.25809062,145.36,145.32,5.25809062]
[1750316472036,5.25809062,145.36,145.32,5.25809062]
[1750316472204,5.25809062,145.36,145.33,24.08312116]
[1750316474921,5.78,145.39,145.33,24.08312116]
[1750316474922,5.12307113,145.39,145.34,5.25809062]
[1750316475122,5.25809062,145.39,145.34,5.25809062]
[1750316475463,5.12307113,145.4,145.35,5.25809062]
[1750316475653,5.25809062,145.39,145.35,5.25809062]
[1750316476954,5.25809062,145.39,145.36,6.87947165]
[1750316477320,5.25809062,145.39,145.36,24.07815079]
[1750316483643,5.12854005,145.4,145.36,24.07815079]
[1750316483847,5.25809062,145.4,145.36,29.33624141]
[1750316486641,5.25809062,145.4,145.36,117.53624141]
[1750316487343,36.50345881,145.41,145.37,5.25809062]
[1750316487554,31.24536819,145.41,145.37,93.45809062]
[1750316487754,31.24536819,145.41,145.39,5.25809062]
[1750316487954,5.12483541,145.42,145.39,5.25809062]
[1750316488160,5.12483541,145.42,145.38,1.6426]
[1750316488161,10.38292603,145.42,145.38,6.90069062]
[1750316488333,5.25809062,145.42,145.38,6.90069062]
[1750316488534,10.38292603,145.42,145.38,6.90069062]
[1750316488769,5.25809062,145.42,145.38,6.90069062]
[1750316489852,5.25809062,145.42,145.39,6.87805213]
[1750316490046,5.12483541,145.43,145.39,6.87805213]
[1750316490365,5.25809062,145.42,145.39,24.07318246]
[1750316491456,36.90483541,145.44,145.39,24.07318246]
[1750316491655,5.25809062,145.42,145.39,24.07318246]
[1750316492042,5.25809062,145.43,145.39,24.07318246]
[1750316492246,5.12483541,145.45,145.39,29.33127308]
[1750316492558,5.25809062,145.44,145.4,5.25809062]
[1750316492745,5.12483541,145.46,145.4,5.25809062]
[1750316492945,5.25809062,145.44,145.4,5.25809062]
[1750316493365,5.25809062,145.44,145.41,6.87710611]
[1750316494189,5.12483541,145.46,145.41,6.87710611]
[1750316494340,5.25809062,145.44,145.41,6.87710611]
[1750316494545,5.25809062,145.44,145.41,24.06987139]
[1750316495872,5.25809062,145.43,145.41,24.06987139]
[1750316497162,5.25809062,145.43,145.41,17.19276528]
[1750316497564,5.25809062,145.44,145.41,17.19276528]
[1750316498875,5.25809062,145.44,145.41,24.06987139]
[1750316499170,5.25809062,145.45,145.41,29.32796201]
[1750316499550,32.82483541,145.48,145.41,29.32796201]
[1750316499756,5.25809062,145.45,145.41,29.32796201]
[1750316500577,5.25809062,145.45,145.42,5.25809062]
[1750316501470,60.01724886,145.49,145.42,5.25809062]
[1750316501667,5.25809062,145.45,145.43,6.87616035]
[1750316501863,5.25809062,145.46,145.43,24.06656123]
[1750316502065,41.3676,145.49,145.43,24.06656123]
[1750316502274,5.25809062,145.46,145.43,24.06656123]
[1750316502882,5.25809062,145.46,145.43,29.32465185]
[1750316503178,5.25809062,145.47,145.43,29.32465185]
[1750316504256,5.25809062,145.47,145.41,24.06987139]
[1750316504454,5.25809062,145.47,145.43,5.25809062]
[1750316505358,5.25809062,145.47,145.44,6.87568756]
[1750316506685,5.25809062,145.49,145.44,29.3229971]
[1750316506996,26.0,145.52,145.45,5.25809062]
[1750316506997,31.10544187,145.52,145.45,5.25809062]
[1750316507293,5.25809062,145.5,145.45,5.25809062]
[1750316508177,31.10544187,145.52,145.46,12.13283281]
[1750316508391,5.25809062,145.5,145.46,29.3196883]
[1750316509055,26.0,145.52,145.46,29.3196883]
[1750316509258,5.25809062,145.5,145.46,29.3196883]
[1750316510360,5.25809062,145.5,145.46,5.25809062]
[1750316511578,5.25809062,145.5,145.47,6.8742696]
[1750316511777,26.0,145.52,145.47,6.8742696]
[1750316512090,5.25809062,145.5,145.47,6.8742696]
[1750316513293,5.25809062,145.48,145.47,6.8742696]
[1750316513592,26.0,145.5,145.46,17.18573447]
[1750316513995,5.25809062,145.49,145.46,17.18573447]
[1750316515398,31.25809062,145.5,145.46,22.44382509]
[1750316515599,31.25809062,145.5,145.46,29.31856728]
[1750316516189,26.0,145.5,145.46,29.31856728]
[1750316516389,31.25809062,145.5,145.46,29.31856728]
[1750316517281,26.0,145.49,145.48,6.87379708]
[1750316517903,17.29816453,145.53,145.48,24.05828979]
[1750316517904,43.29816453,145.53,145.48,24.05828979]
[1750316518106,5.25809062,145.51,145.48,24.05828979]
[1750316519589,5.25809062,145.5,145.48,6.87379708]
[1750316521302,5.25809062,145.49,145.46,6.87474219]
[1750316521504,5.25809062,145.48,145.46,6.87474219]
[1750316521908,5.25809062,145.49,145.46,6.87474219]
[1750316522887,8.19312498,145.49,145.46,6.87474219]
[1750316524106,34.19312498,145.5,145.46,15.06786717]
[1750316524401,34.19312498,145.5,145.46,32.25472266]
[1750316524979,26.0,145.5,145.46,32.25472266]
[1750316525394,34.19312498,145.5,145.46,32.25472266]
[1750316526083,8.19312498,145.5,145.46,32.25472266]
[1750316526580,5.11188758,145.52,145.46,32.25472266]
[1750316526901,8.19312498,145.5,145.46,32.25472266]
[1750316529010,34.19312498,145.51,145.48,6.87379708]
[1750316529579,34.19312498,145.51,145.48,24.05828979]
[1750316530286,5.11188758,145.53,145.49,8.19312498]
[1750316530609,5.11188758,145.54,145.51,8.19312498]
[1750316530912,8.19312498,145.56,145.53,6.87143544]
[1750316531082,5.11188758,145.55,145.53,6.87143544]
[1750316531283,8.19312498,145.56,145.53,6.87143544]
[1750316531703,13.30501256,145.56,145.53,6.87143544]
[1750316531898,13.30501256,145.58,145.54,8.19312498]
[1750316532211,5.11188758,145.57,145.54,8.19312498]
[1750316533002,8.19312498,145.58,145.55,6.87049124]
[1750316533197,13.30501256,145.58,145.55,6.87049124]
[1750316533499,8.19312498,145.58,145.55,6.87049124]
[1750316534494,8.19312498,145.58,145.55,24.04671934]
[1750316535000,5.11188758,145.59,145.55,24.04671934]
[1750316535203,8.19312498,145.58,145.55,24.04671934]
[1750316536620,5.11188758,145.59,145.55,24.04671934]
[1750316536913,13.30501256,145.59,145.55,24.04671934]
[1750316537590,8.19312498,145.59,145.55,24.04671934]
[1750316538718,34.19312498,145.57,145.55,6.87049124]
[1750316538905,8.19312498,145.56,145.49,8.1229]
[1750316539110,8.19312498,145.53,145.49,9.76112498]
[1750316539294,8.19312498,145.53,145.5,24.05494374]
[1750316539899,5.11188758,145.56,145.5,24.05494374]
[1750316540115,8.19312498,145.54,145.5,24.05494374]
[1750316543632,31.11188758,145.57,145.5,24.05494374]
[1750316543633,31.11188758,145.57,145.5,32.24806872]
[1750316543833,8.19312498,145.55,145.5,32.24806872]
[1750316544732,8.19312498,145.55,145.51,8.19312498]
[1750316544902,8.19312498,145.52,145.46,17.18685549]
[1750316545213,8.19312498,145.49,145.46,24.06159768]
[1750316545522,31.11188758,145.54,145.46,32.25472266]
[1750316545725,34.19312498,145.5,145.46,32.25472266]
[1750316548510,8.19312498,145.49,145.46,24.06159768]
[1750316549841,8.19312498,145.48,145.46,24.06159768]
[1750316550940,8.19312498,145.48,145.46,17.18685549]
[1750316551151,8.19312498,145.49,145.46,17.18685549]
[1750316552136,8.19312498,145.48,145.46,17.18685549]
[1750316552526,26.0,145.5,145.46,17.18685549]
[1750316552741,8.19312498,145.49,145.46,17.18685549]
[1750316552939,8.19312498,145.49,145.46,24.06159768]
[1750316553747,26.0,145.5,145.46,24.06159768]
[1750316553942,8.19312498,145.49,145.46,24.06159768]
[1750316555748,8.19312498,145.51,145.47,8.19312498]
[1750316556731,5.12292759,145.52,145.48,8.19312498]
[1750316557051,26.0,145.52,145.47,8.19312498]
[1750316557224,34.19312498,145.52,145.47,8.19312498]
[1750316557419,26.0,145.52,145.46,58.43530866]
[1750316557635,34.19312498,145.52,145.48,24.05828979]
[1750316558350,34.19312498,145.52,145.48,32.25141477]
[1750316563559,8.19312498,145.51,145.48,24.05828979]
[1750316563966,34.19312498,145.52,145.48,32.25141477]
[1750316564455,34.19312498,145.52,145.48,24.05828979]
[1750316564963,26.0,145.52,145.48,24.05828979]
[1750316565263,8.19312498,145.51,145.48,24.05828979]
[1750316568365,8.19312498,145.5,145.48,24.05828979]
[1750316569465,8.19312498,145.5,145.48,17.18449271]
[1750316571067,8.19312498,145.5,145.46,24.06159768]
[1750316572878,5.13363416,145.51,145.46,24.06159768]
[1750316573080,8.19312498,145.5,145.46,24.06159768]
[1750316573771,8.19312498,145.5,145.46,32.25472266]
[1750316574563,26.0,145.52,145.46,66.62843364]
[1750316574769,8.19312498,145.5,145.46,66.62843364]
[1750316575470,8.19312498,145.5,145.46,154.82843364]
[1750316580275,8.19312498,145.5,145.46,146.63530866]
[1750316580446,8.19312498,145.5,145.46,154.82843364]
[1750316580954,5.24226007,145.5,145.46,151.87756873]
[1750316584173,5.24226007,145.5,145.46,146.63530866]
[1750316584578,5.24226007,145.5,145.46,151.87756873]
[1750316586076,5.24226007,145.47,145.46,24.06159768]
[1750316586266,10.3881648,145.47,145.46,6.87474219]
[1750316586454,5.14590473,145.47,145.46,6.87474219]
[1750316586656,36.3867946,145.49,145.46,24.06159768]
[1750316586854,5.14468072,145.48,145.46,24.06159768]
[1750316587054,31.24226007,145.49,145.46,24.06159768]
[1750316587261,5.14466181,145.48,145.46,24.06159768]
[1750316587577,31.24226007,145.49,145.46,24.06159768]
[1750316588179,26.0,145.49,145.46,24.06159768]
[1750316588776,31.24226007,145.49,145.46,24.06159768]
[1750316589374,31.24226007,145.49,145.45,5.24226007]
[1750316589950,31.24226007,145.49,145.43,34.3793051]
[1750316590251,5.14652759,145.48,145.44,5.24226007]
[1750316590575,31.24226007,145.49,145.45,5.24226007]
[1750316590976,26.0,145.49,145.45,5.24226007]
[1750316591284,26.0,145.49,145.43,122.5793051]
[1750316591285,26.0,145.49,145.47,6.8742696]
[1750316591583,27.72,145.52,145.47,29.30220369]
[1750316591872,10.38767609,145.51,145.47,29.30220369]
[1750316592082,5.14541602,145.5,145.47,29.30220369]
[1750316592276,5.24226007,145.51,145.47,29.30220369]
[1750316592482,5.14538635,145.5,145.47,29.30220369]
[1750316592659,5.24226007,145.51,145.47,29.30220369]
[1750316592959,5.14538736,145.5,145.47,29.30220369]
[1750316593159,5.24226007,145.51,145.47,29.30220369]
[1750316593362,5.14538803,145.5,145.47,29.30220369]
[1750316593555,5.24226007,145.51,145.47,29.30220369]
[1750316593863,5.1454421,145.5,145.47,29.30220369]
[1750316594179,26.0,145.52,145.48,5.24226007]
[1750316594382,5.1451261,145.51,145.48,5.24226007]
[1750316594555,26.0,145.52,145.48,5.24226007]
[1750316594754,5.14514118,145.51,145.48,5.24226007]
[1750316594968,26.0,145.52,145.48,5.24226007]
[1750316595169,5.14511085,145.51,145.49,6.87332462]
[1750316595391,26.0,145.52,145.49,24.05663618]
[1750316595554,5.14523312,145.51,145.49,24.05663618]
[1750316595754,26.0,145.52,145.49,24.05663618]
[1750316595979,5.14524773,145.51,145.49,24.05663618]
[1750316596181,26.0,145.52,145.49,24.05663618]
[1750316596385,5.14527805,145.51,145.49,24.05663618]
[1750316596608,26.0,145.52,145.49,24.05663618]
[1750316596884,5.14534263,145.51,145.49,24.05663618]
[1750316597082,26.0,145.52,145.49,24.05663618]
[1750316597262,5.1453423,145.51,145.49,24.05663618]
[1750316597461,31.24226007,145.52,145.49,24.05663618]
[1750316597662,5.14546217,145.51,145.49,24.05663618]
[1750316597882,31.24226007,145.52,145.49,24.05663618]
[1750316598085,5.14552412,145.51,145.49,24.05663618]
[1750316598378,31.24226007,145.52,145.49,24.05663618]
[1750316598715,5.14565534,145.51,145.49,24.05663618]
[1750316598861,26.0,145.52,145.49,24.05663618]
[1750316599061,5.14546567,145.51,145.49,24.05663618]
[1750316599261,31.24226007,145.52,145.49,24.05663618]
[1750316599873,6.42342679,145.56,145.51,5.24226007]
[1750316600080,5.14433855,145.55,145.53,5.24226007]
[1750316600384,5.24226007,145.58,145.53,5.24226007]
[1750316600562,26.0,145.55,145.53,5.24226007]
[1750316600965,5.14101651,145.57,145.54,8.1830808]
[1750316601186,8.1830808,145.6,145.55,8.1830808]
[1750316601485,13.323722,145.59,145.56,24.04506732]
[1750316601791,5.1406412,145.58,145.56,24.04506732]
[1750316602088,8.1830808,145.59,145.56,24.04506732]
[1750316604800,13.31234465,145.59,145.56,24.04506732]
[1750316606975,8.1830808,145.58,145.56,24.04506732]
[1750316608396,8.1830808,145.58,145.56,17.17504809]
[1750316610996,31.12926385,145.6,145.56,17.17504809]
[1750316611206,8.1830808,145.59,145.56,17.17504809]
[1750316612197,8.1830808,145.59,145.56,24.04506732]
[1750316620209,26.0,145.6,145.56,24.04506732]
[1750316620405,8.1830808,145.59,145.56,24.04506732]
[1750316622922,5.2361125,145.59,145.56,17.17504809]
[1750316623203,31.2361125,145.6,145.56,22.41116059]
[1750316623584,26.0,145.6,145.56,22.41116059]
[1750316623784,26.0,145.6,145.57,5.2361125]
[1750316624188,26.0,145.59,145.57,5.2361125]
[1750316625010,26.0,145.59,145.58,12.10518792]
[1750316625314,5.2361125,145.63,145.58,12.10518792]
[1750316625610,5.2361125,145.63,145.59,5.2361125]
[1750316625793,65.60375423,145.64,145.59,5.2361125]
[1750316626000,70.83986673,145.64,145.6,5.2361125]
[1750316626196,43.11986673,145.64,145.6,5.2361125]
[1750316626392,191.71650429,145.69,145.6,5.2361125]
[1750316626599,5.2361125,145.65,145.61,5.2361125]
[1750316626800,31.2361125,145.65,145.61,5.2361125]
[1750316627002,26.0,145.63,145.62,6.86718857]
[1750316627400,5.10914573,145.67,145.62,29.2712725]
[1750316627623,26.0,145.64,145.62,29.2712725]
[1750316628311,26.0,145.64,145.62,24.03516]
[1750316628518,26.0,145.64,145.62,29.2712725]
[1750316628813,26.0,145.65,145.62,32.2086862]
[1750316631799,26.0,145.65,145.63,8.1735262]
[1750316632190,8.1735262,145.67,145.63,8.1735262]
[1750316632392,8.1735262,145.67,145.64,6.86624553]
[1750316633601,13.9935262,145.69,145.65,8.1735262]
[1750316633899,34.1735262,145.69,145.65,8.1735262]
[1750316634307,8.1735262,145.71,145.67,6.86483146]
[1750316634618,7.8492,145.73,145.67,6.86483146]
[1750316634619,5.10149581,145.73,145.68,8.1735262]
[1750316634933,5.10149581,145.73,145.67,58.35106747]
[1750316634934,8.1735262,145.73,145.69,8.1735262]
[1750316635235,26.0,145.73,145.7,8.1735262]
[1750316635409,8.1735262,145.74,145.7,8.1735262]
[1750316635595,26.0,145.73,145.7,8.1735262]
[1750316636525,26.0,145.73,145.71,6.86294694]
[1750316636735,26.0,145.73,145.71,15.03647314]
[1750316637331,26.0,145.73,145.71,6.86294694]
[1750316638018,26.0,145.73,145.71,15.03647314]
[1750316638208,26.0,145.73,145.71,32.19384051]
[1750316638407,8.1735262,145.76,145.71,32.19384051]
[1750316638913,26.0,145.76,145.72,8.1735262]
[1750316639098,34.1735262,145.76,145.72,8.1735262]
[1750316639297,26.0,145.74,145.73,6.86200507]
[1750316640225,8.1735262,145.74,145.73,6.86200507]
[1750316640412,8.1735262,145.74,145.69,15.03741527]
[1750316640611,8.1735262,145.73,145.69,32.19713796]
[1750316640812,8.1735262,145.73,145.69,24.02361176]
[1750316641326,8.1735262,145.73,145.69,32.19713796]
[1750316644012,26.0,145.75,145.69,24.02361176]
[1750316644217,25.5,145.73,145.7,8.1735262]
[1750316646205,25.5,145.73,145.71,6.86294694]
[1750316648523,25.5,145.73,145.7,6.86341798]
[1750316649321,33.6735262,145.73,145.7,6.86341798]
[1750316650941,25.5,145.73,145.7,6.86341798]
[1750316651133,33.6735262,145.73,145.7,6.86341798]
[1750316651828,8.1735262,145.72,145.7,6.86341798]
[1750316652026,8.1735262,145.71,145.68,6.86436024]
[1750316652423,8.1735262,145.71,145.67,6.86483146]
[1750316652936,8.1735262,145.71,145.67,15.03835766]
[1750316654311,8.1735262,145.71,145.67,32.20043633]
[1750316654512,8.1735262,145.7,145.67,6.86483146]
[1750316654712,8.1735262,145.69,145.67,6.86483146]
[1750316656534,8.1735262,145.69,145.66,6.86530275]
[1750316658118,8.1735262,145.68,145.66,6.86530275]
[1750316658661,8.1735262,145.68,145.65,24.03016652]
[1750316661833,8.1735262,145.67,145.65,6.86577411]
[1750316662012,34.1735262,145.68,145.65,6.86577411]
[1750316662844,26.0,145.68,145.65,6.86577411]
[1750316663145,34.1735262,145.68,145.65,6.86577411]
[1750316668813,31.22982575,145.68,145.65,6.86577411]
[1750316671952,31.22982575,145.68,145.64,6.86624553]
[1750316672459,26.0,145.68,145.64,24.03185937]
[1750316672626,31.22982575,145.68,145.64,24.03185937]
[1750316674061,31.22982575,145.68,145.64,22.39543959]
[1750316674250,26.0,145.68,145.64,22.39543959]
[1750316675057,26.0,145.68,145.64,29.26168512]
[1750316675948,6.42342679,145.72,145.64,29.26168512]
[1750316676151,5.12405065,145.71,145.68,5.22982575]
[1750316676335,5.22982575,145.73,145.68,5.22982575]
[1750316676520,5.12370175,145.72,145.68,5.22982575]
[1750316676721,31.22982575,145.73,145.68,5.22982575]
[1750316677048,5.12462645,145.72,145.69,5.22982575]
[1750316677224,26.0,145.71,145.7,6.86341798]
[1750316678660,31.22982575,145.71,145.66,24.02855964]
[1750316678827,8.17061871,145.69,145.66,24.02855964]
[1750316680544,26.0,145.7,145.66,24.02855964]
[1750316680750,8.17061871,145.69,145.66,24.02855964]
[1750316682046,34.17061871,145.7,145.66,8.17061871]
[1750316682645,13.29851319,145.72,145.68,8.17061871]
[1750316682846,8.17061871,145.72,145.68,8.17061871]
[1750316683051,26.0,145.71,145.68,8.17061871]
[1750316683356,26.0,145.71,145.67,8.17061871]
[1750316684235,26.0,145.71,145.68,24.02526084]
[1750316685448,34.17061871,145.71,145.68,24.02526084]
[1750316685629,8.17061871,145.69,145.65,8.17061871]
[1750316685829,34.17061871,145.7,145.65,8.17061871]
[1750316686630,5.1306632,145.69,145.65,8.17061871]
[1750316686866,34.17061871,145.7,145.65,8.17061871]
[1750316687041,5.130692,145.69,145.65,8.17061871]
[1750316687229,34.17061871,145.7,145.66,24.02855964]
[1750316687429,5.13125173,145.69,145.66,24.02855964]
[1750316687675,34.17061871,145.7,145.66,24.02855964]
[1750316687955,5.13125107,145.69,145.66,24.02855964]
[1750316688146,34.17061871,145.7,145.66,24.02855964]
[1750316688347,5.13183875,145.69,145.66,24.02855964]
[1750316688539,34.17061871,145.7,145.66,24.02855964]
[1750316688761,5.13183875,145.69,145.66,24.02855964]
[1750316689033,8.17061871,145.69,145.66,24.02855964]
[1750316690048,26.0,145.7,145.66,24.02855964]
[1750316690225,13.30382139,145.69,145.66,24.02855964]
[1750316690429,8.17061871,145.69,145.66,24.02855964]
[1750316692130,8.17061871,145.69,145.66,17.16325689]
[1750316692634,5.1351584,145.68,145.66,17.16325689]
[1750316692852,8.17061871,145.68,145.66,17.16325689]
[1750316693356,5.13614046,145.67,145.66,17.16325689]
[1750316694547,8.17061871,145.69,145.66,17.16325689]
[1750316694854,5.13698828,145.68,145.66,17.16325689]
[1750316695060,8.17061871,145.69,145.66,17.16325689]
[1750316695236,5.13810382,145.68,145.66,17.16325689]
[1750316695431,8.17061871,145.69,145.66,24.02855964]
[1750316695637,5.13810315,145.68,145.66,24.02855964]
[1750316695851,8.17061871,145.69,145.66,24.02855964]
[1750316696054,5.13812463,145.68,145.66,24.02855964]
[1750316696366,5.13812463,145.67,145.66,24.02855964]
[1750316697958,5.13812463,145.67,145.63,24.03350957]
[1750316698158,13.31096295,145.66,145.63,24.03350957]
[1750316698358,34.17061871,145.64,145.63,6.86671702]
[1750316698535,39.31096295,145.64,145.63,6.86671702]
[1750316698865,39.31096295,145.64,145.61,6.86766018]
[1750316699059,8.17061871,145.62,145.61,6.86766018]
[1750316699269,13.31084141,145.62,145.61,6.86766018]
[1750316700266,13.31084141,145.62,145.58,6.86907542]
[1750316700460,13.31084141,145.61,145.58,6.86907542]
[1750316700636,8.17061871,145.61,145.58,6.86907542]
[1750316701037,8.17061871,145.62,145.58,32.21238268]
[1750316701375,5.14042005,145.61,145.58,32.21238268]
[1750316701539,26.0,145.62,145.6,8.17061871]
[1750316701855,26.0,145.62,145.61,8.17061871]
[1750316702052,5.13577184,145.64,145.61,8.17061871]
[1750316702238,26.0,145.63,145.62,6.86718857]
[1750316704176,26.0,145.65,145.62,32.20577871]
[1750316704353,8.17061871,145.66,145.62,32.20577871]
[1750316704735,26.0,145.67,145.63,8.17061871]
[1750316704736,8.17061871,145.67,145.63,8.17061871]
[1750316704968,5.13079777,145.66,145.64,8.17061871]
[1750316705135,8.17061871,145.68,145.64,8.17061871]
[1750316705348,31.13048648,145.67,145.64,8.17061871]
[1750316705658,26.0,145.67,145.64,8.17061871]
[1750316706058,26.0,145.67,145.65,6.86577411]
[1750316706555,26.0,145.68,145.65,15.03639282]
[1750316706757,26.0,145.67,145.66,8.17061871]
[1750316707355,26.0,145.68,145.66,8.17061871]
[1750316708054,26.0,145.68,145.67,15.03545017]
[1750316708945,26.0,145.68,145.67,32.19752884]
[1750316709348,26.0,145.68,145.67,24.02691013]
[1750316710466,26.0,145.69,145.67,24.02691013]
[1750316710668,26.0,145.68,145.67,24.02691013]
[1750316711763,26.0,145.68,145.64,24.03185937]
[1750316711937,26.0,145.68,145.66,8.17061871]
[1750316713847,26.0,145.68,145.67,6.86483146]
[1750316715979,8.17061871,145.68,145.65,6.86577411]
[1750316716161,8.17061871,145.67,145.65,6.86577411]
[1750316717565,26.0,145.69,145.65,6.86577411]
[1750316717770,8.17061871,145.68,145.65,6.86577411]
[1750316718148,8.17061871,145.68,145.64,32.20245045]
[1750316722274,8.17061871,145.68,145.64,24.03183174]
[1750316726079,8.17061871,145.68,145.64,32.20245045]
[1750316728667,27.74,145.7,145.64,6.86624553]
[1750316728668,34.17061871,145.67,145.64,6.86624553]
[1750316729193,8.17061871,145.66,145.63,6.86671702]
[1750316730592,8.17061871,145.64,145.63,6.86671702]
[1750316731088,8.17061871,145.64,145.6,24.03841156]
[1750316731255,8.17061871,145.63,145.6,24.03841156]
[1750316734081,5.13076902,145.64,145.6,6.86813186]
[1750316734082,8.17061871,145.61,145.6,6.86813186]
[1750316734487,8.17061871,145.61,145.59,6.86848835]
[1750316734692,8.17061871,145.6,145.56,6.87001923]
[1750316734995,8.17061871,145.59,145.56,95.07001923]
[1750316735489,8.17061871,145.58,145.56,95.07001923]
[1750316736370,8.17061871,145.57,145.55,6.87020676]
[1750316736569,8.17061871,145.56,145.55,6.87020676]
[1750316736975,8.17061871,145.56,145.54,6.87078937]
[1750316737177,8.17061871,145.55,145.54,6.87078937]
[1750316739381,26.0,145.58,145.54,6.87078937]
[1750316739581,8.17061871,145.55,145.54,6.87078937]
[1750316739775,8.17061871,145.55,145.51,6.8723799]
[1750316742869,8.17061871,145.55,145.5,24.05498281]
[1750316743171,8.17061871,145.55,145.5,32.22560152]
[1750316745503,26.0,145.58,145.51,8.17061871]
[1750316745799,8.17061871,145.56,145.52,8.17061871]
[1750316745990,8.17061871,145.56,145.51,8.17061871]
[1750316746302,8.17061871,145.55,145.51,8.17061871]
[1750316746473,8.17061871,145.56,145.52,8.17061871]
[1750316747974,8.17061871,145.56,145.53,6.87143544]
[1750316750375,8.17061871,145.56,145.52,17.17915728]
[1750316752314,8.17061871,145.54,145.52,6.87190764]
[1750316752479,8.17061871,145.53,145.52,6.87190764]
[1750316753900,8.17061871,145.53,145.51,6.8723799]
[1750316754789,8.17061871,145.54,145.51,6.8723799]
[1750316755206,8.17061871,145.53,145.51,6.8723799]
[1750316756107,8.17061871,145.54,145.5,24.05494033]
[1750316758106,8.17061871,145.53,145.5,24.05494033]
[1750316758291,8.17061871,145.51,145.5,6.87285223]
[1750316759299,8.17061871,145.51,145.48,6.87379708]
[1750316760310,8.17061871,145.5,145.48,6.87379708]
[1750316760518,8.17061871,145.49,145.46,6.87474219]
[1750316760703,8.17061871,145.48,145.46,6.87474219]
[1750316761385,8.17061871,145.48,145.44,8.17061871]
[1750316761386,8.17061871,145.48,145.45,6.87521485]
[1750316761592,26.0,145.49,145.45,6.87521485]
[1750316761593,8.17061871,145.47,145.45,6.87521485]
[1750316762519,26.0,145.49,145.45,6.87521485]
[1750316762703,8.17061871,145.47,145.45,6.87521485]
[1750316763419,8.17061871,145.48,145.44,32.23552519]
[1750316766901,8.17061871,145.47,145.44,24.06490648]
[1750316767325,8.17061871,145.46,145.43,6.87616035]
[1750316767833,8.17061871,145.46,145.43,24.06656123]
[1750316773641,8.17061871,145.46,145.42,6.8766332]
[1750316773642,8.17061871,145.45,145.42,6.8766332]
[1750316773928,8.17061871,145.46,145.42,6.8766332]
[1750316774114,8.17061871,145.46,145.42,24.0682162]
[1750316775328,8.17061871,145.45,145.42,24.0682162]
[1750316776947,26.0,145.45,145.42,32.23883491]
[1750316777431,5.10429813,145.48,145.42,32.23883491]
[1750316777432,8.17061871,145.47,145.43,8.17061871]
[1750316777799,34.17061871,145.47,145.44,6.87568756]
[1750316778005,26.0,145.47,145.44,6.87568756]
[1750316778934,5.10562816,145.5,145.45,8.17061871]
[1750316779115,15.69951871,145.52,145.44,25.65060648]
[1750316779317,8.17061871,145.51,145.46,8.17061871]
[1750316779546,8.17061871,145.5,145.46,8.17061871]
[1750316779752,8.17061871,145.5,145.47,6.8742696]
[1750316779908,8.17061871,145.51,145.47,6.8742696]
[1750316780108,5.11140527,145.51,145.47,6.8742696]
[1750316780308,8.17061871,145.5,145.47,6.8742696]
[1750316781109,26.0,145.49,145.47,6.8742696]
[1750316784743,5.11377649,145.51,145.48,8.17061871]
[1750316784939,26.0,145.51,145.49,8.17061871]
[1750316785143,26.0,145.52,145.5,8.17061871]
[1750316786736,26.0,145.52,145.51,6.8723799]
[1750316787321,26.0,145.53,145.51,24.05332966]